bitfinex/quotes_BTCUSD_20250709
["timestamp","ask_amount","ask_price","bid_price","bid_amount"]
[1752021905453,0.63469551,109020.0,109010.0,0.39272913]
[1752021906098,0.6438678,109020.0,109010.0,0.39272913]
[1752021909502,0.46958769,109020.0,109010.0,0.40190201]
[1752021910897,0.46930769,109020.0,109010.0,0.40190201]
[1752021911103,0.47848031,109020.0,109010.0,0.40190201]
[1752021911343,0.66193288,109020.0,109010.0,0.40190201]
[1752021914022,0.66193288,109020.0,109010.0,0.39926201]
[1752021914237,0.47848031,109020.0,109010.0,0.39926201]
[1752021915497,0.47848031,109020.0,109010.0,0.50941997]
[1752021916523,0.46930769,109020.0,109010.0,0.50941997]
[1752021917637,0.47848031,109020.0,109010.0,0.50941997]
[1752021920908,0.46930769,109020.0,109010.0,0.50941997]
[1752021921118,0.02751678,109020.0,109010.0,0.41566201]
[1752021921364,0.3035904,109020.0,109010.0,0.41311542]
[1752021921565,0.3035904,109020.0,109010.0,0.52327338]
[1752021922347,0.3035904,109020.0,109010.0,0.41311542]
[1752021924200,0.31276235,109020.0,109010.0,0.41311542]
[1752021924442,0.32193447,109020.0,109010.0,0.41311542]
[1752021924656,0.31276235,109020.0,109010.0,0.41311542]
[1752021926442,0.32193447,109020.0,109010.0,0.41311542]
[1752021926867,0.34027904,109020.0,109010.0,0.49569453]
[1752021927229,0.33110667,109020.0,109010.0,0.49569453]
[1752021928075,0.34027896,109020.0,109010.0,0.49569453]
[1752021928301,0.34027896,109020.0,109010.0,0.49565453]
[1752021928988,0.34945142,109020.0,109010.0,0.49565453]
[1752021929215,0.34027896,109020.0,109010.0,0.49565453]
[1752021929396,0.34945133,109020.0,109010.0,0.49565453]
[1752021930379,0.34945133,109020.0,109010.0,0.48648207]
[1752021930380,0.34945192,109020.0,109010.0,0.48648207]
[1752021930628,0.34027938,109020.0,109010.0,0.49565495]
[1752021930973,0.34945184,109020.0,109010.0,0.49565495]
[1752021931183,0.34945184,109020.0,109010.0,0.5232338]
[1752021932088,0.34945184,109020.0,109010.0,0.3847538]
[1752021932293,0.34945184,109020.0,109010.0,0.5232338]
[1752021937157,0.34945184,109020.0,109010.0,0.3847538]
[1752021937305,0.34945184,109020.0,109010.0,0.5232338]
[1752021938785,0.34945184,109020.0,109010.0,0.52585983]
[1752021939844,0.34027938,109020.0,109010.0,0.52585983]
[1752021943548,0.34027938,109020.0,109010.0,0.51005983]
[1752021944719,0.02751661,109020.0,109010.0,0.51005983]
[1752021944932,0.02751661,109020.0,109010.0,0.52535983]
[1752021945354,0.33110701,109020.0,109010.0,0.52535983]
[1752021945975,0.34027947,109020.0,109010.0,0.52535983]
[1752021946638,0.34945209,109020.0,109010.0,0.41520187]
[1752021946853,0.34027947,109020.0,109010.0,0.41520187]
[1752021948747,0.33110701,109020.0,109010.0,0.41520187]
[1752021949058,0.32193472,109020.0,109010.0,0.41520187]
[1752021949296,0.33110642,109020.0,109010.0,0.52535983]
[1752021949498,0.33110634,109020.0,109010.0,0.52535983]
[1752021950154,0.32193422,109020.0,109010.0,0.52535983]
[1752021950333,0.33110625,109020.0,109010.0,0.52535983]
[1752021952267,0.23930534,109020.0,109010.0,0.52535983]
[1752021952423,0.01834382,109020.0,109010.0,0.41520187]
[1752021952830,0.01834382,109020.0,109010.0,0.49779155]
[1752021953043,0.01834382,109020.0,109010.0,0.51499767]
[1752021953249,0.02751594,109020.0,109010.0,0.51499767]
[1752021953677,0.02751602,109020.0,109010.0,0.37651767]
[1752021953881,0.01834382,109020.0,109010.0,0.51499767]
[1752021954084,0.02751594,109020.0,109010.0,0.51499767]
[1752021954492,0.01834382,109020.0,109010.0,0.51499767]
[1752021954898,0.02751585,109020.0,109010.0,0.51499767]
[1752021957880,0.03668797,109020.0,109010.0,0.51499767]
[1752021958120,0.02751585,109020.0,109010.0,0.51499767]
[1752021958874,0.03668805,109020.0,109010.0,0.51499767]
[1752021959305,0.02751585,109020.0,109010.0,0.51499767]
[1752021960866,0.01834382,109020.0,109010.0,0.51499767]
[1752021961088,0.02751585,109020.0,109010.0,0.51499767]
[1752021961962,0.03668805,109020.0,109010.0,0.51499767]
[1752021962175,0.04586042,109020.0,109010.0,0.36121767]
[1752021962396,0.04586042,109020.0,109010.0,0.52722595]
[1752021964486,0.03668805,109020.0,109010.0,0.52722595]
[1752021964908,0.04586042,109020.0,109010.0,0.52722595]
[1752021965742,0.03668805,109020.0,109010.0,0.52722595]
[1752021966161,0.04586101,109020.0,109010.0,0.51082595]
[1752021967217,0.02751618,109020.0,109010.0,0.51082595]
[1752021967390,0.02751618,109020.0,109010.0,0.52582595]
[1752021967955,0.02751618,109020.0,109010.0,0.52583032]
[1752021968616,0.03668855,109020.0,109010.0,0.52583032]
[1752021968828,0.02751618,109020.0,109010.0,0.52583032]
[1752021969462,0.03668847,109020.0,109010.0,0.52583032]
[1752021970102,0.01834398,109020.0,109010.0,0.52583032]
[1752021972381,0.01834398,109020.0,109010.0,0.5258307]
[1752021972955,0.01834398,109020.0,109010.0,0.52583071]
[1752021973160,0.01834398,109020.0,109010.0,0.38739071]
[1752021973359,0.01834398,109020.0,109010.0,0.52583071]
[1752021974545,0.02751618,109020.0,109010.0,0.52583071]
[1752021974761,0.01834398,109020.0,109010.0,0.52583071]
[1752021976809,0.01834398,109020.0,109010.0,0.52583099]
[1752021978210,0.59516743,109030.0,109020.0,0.21096943]
[1752021978415,0.61351066,109030.0,109020.0,0.39890558]
[1752021978623,0.61351066,109030.0,109020.0,0.4080777]
[1752021979474,0.61451066,109030.0,109020.0,0.4080777]
[1752021979919,0.61451066,109030.0,109020.0,0.4059977]
[1752021980609,0.59871066,109030.0,109020.0,0.4059977]
[1752021981035,0.59867066,109030.0,109020.0,0.4059977]
[1752021982056,0.52495493,109030.0,109020.0,0.4059977]
[1752021985420,0.52495493,109030.0,109020.0,0.39682558]
[1752021985755,0.70839068,109030.0,109020.0,0.39682558]
[1752021986252,0.70839068,109030.0,109020.0,0.38765338]
[1752021989894,0.69239068,109030.0,109020.0,0.38765338]
[1752021991474,0.69239068,109030.0,109020.0,0.39682558]
[1752021991659,0.69239068,109030.0,109020.0,0.38765338]
[1752021992944,0.36134264,109030.0,109020.0,0.39682541]
[1752021993146,0.15061119,109030.0,109020.0,0.37334885]
[1752021993560,0.15061119,109030.0,109020.0,0.29073401]
[1752021993770,0.15978255,109030.0,109020.0,0.29073401]
[1752021994209,0.15061119,109030.0,109020.0,0.29073401]
[1752021994421,0.003,109030.0,109020.0,0.37332106]
[1752021994629,0.003,109030.0,109020.0,0.29073401]
[1752021994864,0.14144,109030.0,109020.0,0.29073401]
[1752021995298,0.14144,109030.0,109020.0,0.40089197]
[1752021995732,0.14144,109030.0,109020.0,0.43084454]
[1752021996150,0.15061119,109030.0,109020.0,0.43084454]
[1752021996362,0.15061119,109030.0,109020.0,0.32068658]
[1752021996572,0.01217119,109030.0,109020.0,0.32068658]
[1752021996787,0.01117119,109030.0,109020.0,0.32068658]
[1752021996999,0.01117119,109030.0,109020.0,0.32268658]
[1752021997204,0.002,109030.0,109020.0,0.32568658]
[1752021997428,0.01117111,109030.0,109020.0,0.29573401]
[1752021997665,0.0203423,109030.0,109020.0,0.29573401]
[1752021997846,0.02951366,109030.0,109020.0,0.29573401]
[1752021998246,0.0203423,109030.0,109020.0,0.29573401]
[1752021999494,0.01117111,109030.0,109020.0,0.29573401]
[1752021999637,0.01117111,109030.0,109020.0,0.32579338]
[1752022000933,0.01117111,109030.0,109020.0,0.29573401]
[1752022001122,0.02951384,109030.0,109020.0,0.29573401]
[1752022001324,0.02951384,109030.0,109020.0,0.36295023]
[1752022001683,0.02951384,109030.0,109020.0,0.36293155]
[1752022001885,0.04785715,109030.0,109020.0,0.50133155]
[1752022002539,0.04785715,109030.0,109020.0,0.48503155]
[1752022002928,0.03868545,109030.0,109020.0,0.45199813]
[1752022003129,0.03868545,109030.0,109020.0,0.48500573]
[1752022005548,0.04785715,109030.0,109020.0,0.48500573]
[1752022006427,0.20377906,109030.0,109020.0,0.1377163]
[1752022006660,0.23447906,109030.0,109020.0,0.1377163]
[1752022006907,0.68045684,109030.0,109020.0,0.11021744]
[1752022007120,0.68045684,109030.0,109020.0,0.1514841]
[1752022007121,0.81885684,109030.0,109020.0,0.1514841]
[1752022007364,0.81885684,109030.0,109020.0,0.09646674]
[1752022007824,0.81885684,109030.0,109020.0,0.05320008]
[1752022008052,0.91029377,109030.0,109020.0,0.05320008]
[1752022009370,0.91029377,109030.0,109020.0,0.05020008]
[1752022009576,0.91229377,109030.0,109020.0,0.05020008]
[1752022009792,0.91229377,109030.0,109020.0,0.05120008]
[1752022009945,0.91229377,109030.0,109020.0,0.05020008]
[1752022010580,0.91229377,109030.0,109020.0,0.01719248]
[1752022015178,0.21098904,109010.0,109000.0,0.05966253]
[1752022015386,0.34942904,109010.0,109000.0,0.1006008]
[1752022015980,0.34025608,109010.0,109000.0,0.1006008]
[1752022016607,0.37032642,109010.0,109000.0,0.1006008]
[1752022018282,0.37032642,109010.0,109000.0,0.1016008]
[1752022018498,0.37032642,109010.0,109000.0,0.06033414]
[1752022019453,0.37032642,109010.0,109000.0,0.05115983]
[1752022020310,0.49266335,109010.0,109000.0,0.05115983]
[1752022021348,0.49266335,109010.0,109000.0,0.03399865]
[1752022025519,0.49266335,109010.0,109000.0,0.05114878]
[1752022032345,0.49266335,109010.0,109000.0,0.09241544]
[1752022032828,0.49266335,109010.0,109000.0,0.05114878]
[1752022033286,0.5072042,109010.0,109000.0,0.03399865]
[1752022033497,0.5072042,109010.0,109000.0,0.05117309]
[1752022035417,0.5072042,109010.0,109000.0,0.09243975]
[1752022036502,0.58364291,109010.0,109000.0,0.09243975]
[1752022036686,0.5072042,109010.0,109000.0,0.09243975]
[1752022037976,0.3687642,109010.0,109000.0,0.09243975]
[1752022038176,0.5072042,109010.0,109000.0,0.09243975]
[1752022040969,0.47713386,109010.0,109000.0,0.09243975]
[1752022041390,0.47713386,109010.0,109000.0,0.14745711]
[1752022042849,0.50346403,109010.0,109000.0,0.14745711]
[1752022043263,0.50346403,109010.0,109000.0,0.14577711]
[1752022046432,0.57952872,109010.0,109000.0,0.14577711]
[1752022049005,0.36502403,109010.0,109000.0,0.14577711]
[1752022049150,0.48756403,109010.0,109000.0,0.14577711]
[1752022051430,0.48756403,109010.0,109000.0,0.12860267]
[1752022056214,0.33412403,109010.0,109000.0,0.12860267]
[1752022056414,0.47256403,109010.0,109000.0,0.14360267]
[1752022058922,0.54132715,109010.0,109000.0,0.14360267]
[1752022059161,0.47224937,109010.0,109000.0,0.14360267]
[1752022065816,0.47224937,109010.0,109000.0,0.10233601]
[1752022067090,0.47224937,109010.0,109000.0,0.14364304]
[1752022068998,0.31958301,109010.0,109000.0,0.31039646]
[1752022069205,0.45802301,109010.0,109000.0,0.31039646]
[1752022069433,0.4488498,109010.0,109000.0,0.11773601]
[1752022085995,0.4488498,109010.0,109000.0,0.10233601]
[1752022086591,0.4488498,109010.0,109000.0,0.11873601]
[1752022088903,0.3104098,109010.0,109000.0,0.11873601]
[1752022089113,0.4488098,109010.0,109000.0,0.11873601]
[1752022090488,0.4488098,109010.0,109000.0,0.10233601]
[1752022094334,0.3104098,109010.0,109000.0,0.10233601]
[1752022094523,0.4488098,109010.0,109000.0,0.10233601]
[1752022097308,0.4488098,109010.0,109000.0,0.18485223]
[1752022100466,0.4488098,109010.0,109000.0,0.19402654]
[1752022101411,0.4488098,109010.0,109000.0,0.20952654]
[1752022103024,0.4488098,109010.0,109000.0,0.39301277]
[1752022103228,0.4488098,109010.0,109000.0,0.40218699]
[1752022106094,0.4488098,109010.0,109000.0,0.41136113]
[1752022107619,0.4488098,109010.0,109000.0,0.40218699]
[1752022109092,0.4488098,109010.0,109000.0,0.41136113]
[1752022109306,0.4488098,109010.0,109000.0,0.41000113]
[1752022111641,0.4488098,109010.0,109000.0,0.40082699]
[1752022113028,0.4488098,109010.0,109000.0,0.41000113]
[1752022119257,0.3104098,109010.0,109000.0,0.41917502]
[1752022119487,0.4488098,109010.0,109000.0,0.42834882]
[1752022119685,0.16591913,109010.0,109000.0,0.42834823]
[1752022119885,0.358562,109010.0,109000.0,0.41917451]
[1752022120039,0.34938921,109010.0,109000.0,0.41000071]
[1752022121692,0.34021617,109010.0,109000.0,0.40082682]
[1752022121909,0.34021617,109010.0,109000.0,0.41000087]
[1752022122103,0.34021617,109010.0,109000.0,0.41917484]
[1752022122580,0.36261547,109010.0,109000.0,0.41917484]
[1752022123349,0.36261547,109010.0,109000.0,0.42834873]
[1752022124407,0.34021617,109010.0,109000.0,0.42834873]
[1752022128269,0.34021617,109010.0,109000.0,0.41917484]
[1752022130689,0.34021617,109010.0,109000.0,0.42834873]
[1752022137452,0.34021617,109010.0,109000.0,0.41917484]
[1752022139252,0.34021617,109010.0,109000.0,0.41000087]
[1752022139659,0.01834634,109010.0,109000.0,0.42834856]
[1752022139866,0.56411387,109020.0,109010.0,0.22524287]
[1752022140106,0.70251387,109020.0,109010.0,0.30568239]
[1752022140308,0.70251387,109020.0,109010.0,0.36987296]
[1752022142378,0.70351387,109020.0,109010.0,0.36987296]
[1752022145972,0.70351387,109020.0,109010.0,0.36069975]
[1752022146401,0.70351387,109020.0,109010.0,0.36987296]
[1752022147989,0.56511387,109020.0,109010.0,0.36987296]
[1752022148181,0.70351387,109020.0,109010.0,0.36987296]
[1752022150503,0.56511387,109020.0,109010.0,0.36987296]
[1752022150700,0.70351387,109020.0,109010.0,0.37904609]
[1752022151328,0.3816613,109020.0,109010.0,0.37904609]
[1752022151532,0.71268649,109020.0,109010.0,0.34691156]
[1752022151809,0.01017203,109020.0,109010.0,0.34691097]
[1752022152034,0.14857195,109020.0,109010.0,0.34691097]
[1752022152250,0.15774415,109020.0,109010.0,0.34691097]
[1752022152466,0.14857195,109020.0,109010.0,0.34691097]
[1752022152679,0.15774407,109020.0,109010.0,0.34691097]
[1752022152892,0.15774407,109020.0,109010.0,0.42942719]
[1752022155275,0.16691627,109020.0,109010.0,0.42942719]
[1752022155695,0.01017195,109020.0,109010.0,0.42942719]
[1752022155874,0.15770407,109020.0,109010.0,0.37440983]
[1752022156564,0.14853195,109020.0,109010.0,0.42944307]
[1752022156974,0.14853195,109020.0,109010.0,0.37440983]
[1752022158048,0.16687627,109020.0,109010.0,0.42943259]
[1752022159339,0.17604855,109020.0,109010.0,0.42943259]
[1752022159559,0.16687618,109020.0,109010.0,0.42943259]
[1752022159806,0.17604847,109020.0,109010.0,0.42943259]
[1752022160898,0.16687618,109020.0,109010.0,0.42943259]
[1752022161107,0.14853187,109020.0,109010.0,0.42943259]
[1752022162049,0.16687594,109020.0,109010.0,0.42943259]
[1752022162254,0.14853187,109020.0,109010.0,0.42943259]
[1752022162698,0.001,109020.0,109010.0,0.42943259]
[1752022162922,0.13936,109020.0,109010.0,0.37440983]
[1752022163776,0.13936,109020.0,109010.0,0.37744133]
[1752022164239,0.13936,109020.0,109010.0,0.37944133]
[1752022164661,0.13836,109020.0,109010.0,0.37944133]
[1752022164863,0.13936,109020.0,109010.0,0.51780133]
[1752022165318,0.13836,109020.0,109010.0,0.51780133]
[1752022165766,0.13836,109020.0,109010.0,0.51980133]
[1752022165976,0.13836,109020.0,109010.0,0.48681118]
[1752022166222,0.13836,109020.0,109010.0,0.51979585]
[1752022167543,0.15870231,109030.0,109020.0,0.24296943]
[1752022167764,0.15870231,109030.0,109020.0,0.37214929]
[1752022167980,0.15870222,109030.0,109020.0,0.37214929]
[1752022168201,0.15870214,109030.0,109020.0,0.37214929]
[1752022169334,0.16787333,109030.0,109020.0,0.37214929]
[1752022169555,0.16787333,109030.0,109020.0,0.37214131]
[1752022169761,0.15870214,109030.0,109020.0,0.37214131]
[1752022170695,0.14036,109030.0,109020.0,0.37214131]
[1752022171127,0.14953119,109030.0,109020.0,0.37214131]
[1752022172019,0.14953119,109030.0,109020.0,0.3721112]
[1752022173095,0.01117119,109030.0,109020.0,0.3721112]
[1752022173334,0.14953119,109030.0,109020.0,0.33090393]
[1752022173988,0.14953119,109030.0,109020.0,0.32982393]
[1752022174215,0.002,109030.0,109020.0,0.32982393]
[1752022174429,0.14953111,109030.0,109020.0,0.41234015]
[1752022174871,0.15870239,109030.0,109020.0,0.41234015]
[1752022176050,0.16787384,109030.0,109020.0,0.41234015]
[1752022176411,0.16787384,109030.0,109020.0,0.40316812]
[1752022176618,0.17704545,109030.0,109020.0,0.41234015]
[1752022178251,0.18621715,109030.0,109020.0,0.41234015]
[1752022178429,0.17704545,109030.0,109020.0,0.41234015]
[1752022180117,0.18621715,109030.0,109020.0,0.41234015]
[1752022180557,0.18621782,109030.0,109020.0,0.41234015]
[1752022182521,0.36965357,109030.0,109020.0,0.41234015]
[1752022183810,0.17704604,109030.0,109020.0,0.41234015]
[1752022184023,0.16787434,109030.0,109020.0,0.41234015]
[1752022186480,0.16787434,109030.0,109020.0,0.35737147]
[1752022186792,0.17704604,109030.0,109020.0,0.35737147]
[1752022187480,0.18621782,109030.0,109020.0,0.35737147]
[1752022189684,0.16787434,109030.0,109020.0,0.35737147]
[1752022190274,0.15870273,109030.0,109020.0,0.35737147]
[1752022193657,0.16787434,109030.0,109020.0,0.35737147]
[1752022195657,0.15870273,109030.0,109020.0,0.35737147]
[1752022195858,0.16787434,109030.0,109020.0,0.35737147]
[1752022196099,0.15870273,109030.0,109020.0,0.35737147]
[1752022196346,0.16787426,109030.0,109020.0,0.35737147]
[1752022196908,0.17704587,109030.0,109020.0,0.35737147]
[1752022199497,0.18621757,109030.0,109020.0,0.35737147]
[1752022199908,0.18621807,109030.0,109020.0,0.35737164]
[1752022200128,0.38171084,109030.0,109020.0,0.17050588]
[1752022200338,0.37253923,109030.0,109020.0,0.17050588]
[1752022200774,0.46397616,109030.0,109020.0,0.08798966]
[1752022200988,0.47851701,109030.0,109020.0,0.12926789]
[1752022201191,0.68015701,109030.0,109020.0,0.07424405]
[1752022201399,0.81847701,109030.0,109020.0,0.07424405]
[1752022201521,0.81847701,109030.0,109020.0,0.04127823]
[1752022201731,0.57906588,109020.0,109010.0,0.09630207]
[1752022202036,0.67050281,109020.0,109010.0,0.09630207]
[1752022202286,0.69807381,109020.0,109010.0,0.09630207]
[1752022202469,0.69807381,109020.0,109010.0,0.04127823]
[1752022202679,0.78951074,109020.0,109010.0,0.04127823]
[1752022203558,0.2245427,109010.0,109000.0,0.09630207]
[1752022203785,0.45429963,109010.0,109000.0,0.09630207]
[1752022204898,0.45429963,109010.0,109000.0,0.04127823]
[1752022205501,0.45429963,109010.0,109000.0,0.04327823]
[1752022205710,0.19266037,109000.0,108990.0,0.30732996]
[1752022205911,0.19266037,109000.0,108990.0,0.30741539]
[1752022207381,0.20183442,109000.0,108990.0,0.30741539]
[1752022207584,0.20183442,109000.0,108990.0,0.31659012]
[1752022208576,0.20183442,109000.0,108990.0,0.26156628]
[1752022209864,0.20183442,109000.0,108990.0,0.25239155]
[1752022210079,0.20183442,109000.0,108990.0,0.26156636]
[1752022210498,0.20183442,109000.0,108990.0,0.27074109]
[1752022210706,0.20183442,109000.0,108990.0,0.27074058]
[1752022211345,0.01834735,109000.0,108990.0,0.27074058]
[1752022211569,0.02752149,109000.0,108990.0,0.28654008]
[1752022213065,0.03669538,109000.0,108990.0,0.28654008]
[1752022214279,0.01834735,109000.0,108990.0,0.30274008]
[1752022214459,0.02752107,109000.0,108990.0,0.30274008]
[1752022215492,0.03669512,109000.0,108990.0,0.30274008]
[1752022217660,0.02752107,109000.0,108990.0,0.30274008]
[1752022218008,0.03669504,109000.0,108990.0,0.30274008]
[1752022218598,0.03669504,109000.0,108990.0,0.35776392]
[1752022220071,0.04586918,109000.0,108990.0,0.35776392]
[1752022220307,0.02752107,109000.0,108990.0,0.35776392]
[1752022220513,0.21098896,109010.0,109000.0,0.21713442]
[1752022220716,0.34021617,109010.0,109000.0,0.20796045]
[1752022221246,0.34021617,109010.0,109000.0,0.21713459]
[1752022221679,0.34021617,109010.0,109000.0,0.19266045]
[1752022222039,0.00917405,109000.0,108990.0,0.32962154]
[1752022222255,0.01834802,109000.0,108990.0,0.32962154]
[1752022222492,0.02752216,109000.0,108990.0,0.32962154]
[1752022223669,0.01834786,109000.0,108990.0,0.32962154]
[1752022224273,0.027522,109000.0,108990.0,0.32962154]
[1752022224437,0.02752166,109000.0,108990.0,0.32962154]
[1752022224642,0.03669571,109000.0,108990.0,0.46806154]
[1752022225461,0.03669571,109000.0,108990.0,0.42690109]
[1752022225674,0.01834769,109000.0,108990.0,0.42690109]
[1752022225881,0.02752183,109000.0,108990.0,0.42690142]
[1752022226543,0.02752183,109000.0,108990.0,0.50941764]
[1752022226996,0.02752183,109000.0,108990.0,0.42690142]
[1752022227391,0.02752183,109000.0,108990.0,0.50941764]
[1752022227591,0.02752174,109000.0,108990.0,0.50941764]
[1752022228984,0.03669588,109000.0,108990.0,0.50941764]
[1752022229406,0.03669588,109000.0,108990.0,0.4543938]
[1752022230158,0.02752174,109000.0,108990.0,0.4543938]
[1752022230402,0.01834769,109000.0,108990.0,0.4543938]
[1752022235164,0.02752174,109000.0,108990.0,0.4543938]
[1752022236348,0.01834769,109000.0,108990.0,0.4543938]
[1752022237599,0.01834735,109000.0,108990.0,0.4543938]
[1752022238477,0.02752132,109000.0,108990.0,0.4535138]
[1752022238689,0.02752124,109000.0,108990.0,0.4535138]
[1752022242919,0.03669538,109000.0,108990.0,0.4535138]
[1752022244879,0.02752124,109000.0,108990.0,0.4535138]
[1752022245164,0.03669529,109000.0,108990.0,0.4373138]
[1752022245591,0.04586943,109000.0,108990.0,0.4373138]
[1752022246594,0.03669529,109000.0,108990.0,0.4373138]
[1752022248887,0.04586943,109000.0,108990.0,0.2988738]
[1752022249556,0.03669529,109000.0,108990.0,0.2988738]
[1752022254398,0.04586943,109000.0,108990.0,0.2988738]
[1752022254598,0.03669529,109000.0,108990.0,0.2988738]
[1752022257846,0.04586943,109000.0,108990.0,0.2988738]
[1752022259167,0.03669529,109000.0,108990.0,0.2988738]
[1752022260600,0.02752124,109000.0,108990.0,0.2988738]
[1752022260801,0.02752124,109000.0,108990.0,0.3140738]
[1752022262124,0.03669529,109000.0,108990.0,0.3140738]
[1752022263750,0.02752124,109000.0,108990.0,0.3140738]
[1752022265340,0.03669529,109000.0,108990.0,0.3140738]
[1752022265937,0.02752124,109000.0,108990.0,0.3140738]
[1752022266149,0.03669529,109000.0,108990.0,0.3140738]
[1752022267629,0.03669521,109000.0,108990.0,0.3140738]
[1752022270701,0.34002142,109000.0,108990.0,0.3140738]
[1752022272510,0.34919547,109000.0,108990.0,0.3140738]
[1752022273507,0.34002142,109000.0,108990.0,0.3140738]
[1752022274128,0.33084745,109000.0,108990.0,0.3140738]
[1752022275336,0.3400215,109000.0,108990.0,0.3140738]
[1752022276997,0.33084745,109000.0,108990.0,0.3140738]
[1752022278668,0.3400215,109000.0,108990.0,0.3140738]
[1752022280576,0.3400215,109000.0,108990.0,0.2988738]
[1752022281137,0.34919564,109000.0,108990.0,0.2988738]
[1752022281327,0.3400215,109000.0,108990.0,0.2988738]
[1752022283596,0.34919564,109000.0,108990.0,0.2988738]
[1752022284122,0.3400215,109000.0,108990.0,0.2988738]
[1752022284679,0.34919564,109000.0,108990.0,0.2988738]
[1752022285279,0.34919631,109000.0,108990.0,0.2988738]
[1752022287127,0.34919682,109000.0,108990.0,0.2988738]
[1752022288636,0.53268305,109000.0,108990.0,0.2988743]
[1752022288869,0.53268305,109000.0,108990.0,0.30804903]
[1752022289119,0.53268305,109000.0,108990.0,0.31722367]
[1752022289350,0.52350916,109000.0,108990.0,0.43811468]
[1752022289588,0.52350916,109000.0,108990.0,0.42281468]
[1752022291190,0.52350916,109000.0,108990.0,0.43198958]
[1752022291586,0.52350916,109000.0,108990.0,0.44116431]
[1752022291990,0.52350916,109000.0,108990.0,0.45033895]
[1752022297234,0.51433511,109000.0,108990.0,0.44116431]
[1752022304145,0.51433511,109000.0,108990.0,0.44048431]
[1752022308363,0.51433511,109000.0,108990.0,0.44965895]
[1752022310250,0.01834836,109000.0,108990.0,0.46565836]
[1752022310460,0.01834752,109000.0,108990.0,0.48215836]
[1752022312693,0.02752157,109000.0,108990.0,0.48215836]
[1752022313309,0.02752149,109000.0,108990.0,0.48215836]
[1752022313517,0.01834752,109000.0,108990.0,0.48215836]
[1752022313727,0.01834743,109000.0,108990.0,0.40023671]
[1752022313930,0.0275214,109000.0,108990.0,0.40023671]
[1752022316868,0.01834743,109000.0,108990.0,0.40023671]
[1752022317533,0.0275214,109000.0,108990.0,0.40023671]
[1752022318004,0.01834743,109000.0,108990.0,0.40023671]
[1752022319056,0.00917363,109000.0,108990.0,0.40023671]
[1752022319496,0.01834743,109000.0,108990.0,0.40023671]
[1752022320135,0.02752132,109000.0,108990.0,0.40023671]
[1752022321433,0.03669529,109000.0,108990.0,0.40023671]
[1752022321651,0.3400215,109000.0,108990.0,0.40023671]
[1752022321865,0.34919564,109000.0,108990.0,0.40023671]
[1752022322531,0.34919564,109000.0,108990.0,0.38373671]
[1752022322746,0.3400215,109000.0,108990.0,0.38373671]
[1752022323399,0.34919564,109000.0,108990.0,0.38373671]
[1752022324054,0.32167364,109000.0,108990.0,0.38373671]
[1752022324273,0.0275214,109000.0,108990.0,0.48144258]
[1752022324499,0.33084761,109000.0,108990.0,0.48144258]
[1752022324717,0.34002175,109000.0,108990.0,0.48144258]
[1752022325165,0.03669545,109000.0,108990.0,0.48144258]
[1752022325345,0.34002166,109000.0,108990.0,0.48144258]
[1752022326031,0.0275214,109000.0,108990.0,0.48144258]
[1752022326260,0.33084761,109000.0,108990.0,0.48144258]
[1752022327933,0.32167364,109000.0,108990.0,0.48144258]
[1752022328147,0.33084753,109000.0,108990.0,0.48144258]
[1752022328820,0.34002158,109000.0,108990.0,0.48144258]
[1752022329458,0.34919572,109000.0,108990.0,0.48144258]
[1752022329673,0.34919572,109000.0,108990.0,0.46634258]
[1752022329885,0.34919631,109000.0,108990.0,0.46634258]
[1752022331096,0.34002209,109000.0,108990.0,0.46634258]
[1752022344210,0.34002209,109000.0,108990.0,0.38373671]
[1752022344638,0.33084787,109000.0,108990.0,0.38373671]
[1752022344871,0.34002201,109000.0,108990.0,0.38373671]
[1752022345454,0.33084787,109000.0,108990.0,0.38373671]
[1752022346083,0.01834735,109000.0,108990.0,0.38373671]
[1752022346532,0.01834735,109000.0,108990.0,0.39923671]
[1752022350307,0.01834735,109000.0,108990.0,0.48188276]
[1752022351798,0.00917355,109000.0,108990.0,0.48188276]
[1752022352007,0.01834727,109000.0,108990.0,0.48188276]
[1752022352727,0.01834727,109000.0,108990.0,0.4991005]
[1752022352935,0.02752107,109000.0,108990.0,0.4991005]
[1752022353359,0.00917355,109000.0,108990.0,0.4991005]
[1752022353555,0.01834727,109000.0,108990.0,0.4991005]
[1752022354778,0.00917355,109000.0,108990.0,0.41645445]
[1752022354989,0.01834727,109000.0,108990.0,0.41645445]
[1752022355480,0.01834727,109000.0,108990.0,0.49909526]
[1752022355660,0.02752107,109000.0,108990.0,0.49909526]
[1752022356978,0.03669512,109000.0,108990.0,0.48359526]
[1752022357203,0.34002133,109000.0,108990.0,0.48359526]
[1752022359140,0.34002125,109000.0,108990.0,0.48359526]
[1752022360665,0.34919539,109000.0,108990.0,0.48359526]
[1752022363298,0.04586909,109000.0,108990.0,0.48359526]
[1752022363524,0.3491953,109000.0,108990.0,0.48359526]
[1752022364402,0.00917304,109010.0,109000.0,0.21100839]
[1752022364617,0.01834583,109010.0,109000.0,0.32368404]
[1752022364834,0.00917279,109010.0,109000.0,0.40632485]
[1752022365050,0.01834567,109010.0,109000.0,0.40632485]
[1752022365276,0.21097002,109020.0,109010.0,0.20181574]
[1752022365489,0.74409316,109020.0,109010.0,0.27408766]
[1752022365698,0.74409316,109020.0,109010.0,0.28326062]
[1752022365916,0.74409316,109020.0,109010.0,0.34755543]
[1752022366128,0.74409316,109020.0,109010.0,0.27408783]
[1752022366339,0.74409316,109020.0,109010.0,0.28326087]
[1752022366551,0.74409316,109020.0,109010.0,0.27408783]
[1752022367044,0.72574833,109020.0,109010.0,0.07227192]
[1752022367251,0.72574833,109020.0,109010.0,0.11353938]
[1752022367465,0.72674833,109020.0,109010.0,0.11353938]
[1752022367689,0.75694833,109020.0,109010.0,0.11353938]
[1752022369743,0.45362212,109020.0,109010.0,0.11353938]
[1752022370169,0.75694833,109020.0,109010.0,0.11353938]
[1752022370383,0.75694833,109020.0,109010.0,0.09632164]
[1752022371450,0.75694833,109020.0,109010.0,0.04126746]
[1752022371882,0.74194833,109020.0,109010.0,0.04070746]
[1752022375202,0.43862212,109020.0,109010.0,0.04070746]
[1752022375415,0.74194833,109020.0,109010.0,0.04070746]
[1752022378205,0.001,109020.0,109010.0,0.2837965]
[1752022378416,0.16683636,109020.0,109010.0,0.34802356]
[1752022378633,0.02851628,109020.0,109010.0,0.48634356]
[1752022378905,0.02851628,109020.0,109010.0,0.4456361]
[1752022379135,0.03768874,109020.0,109010.0,0.4456361]
[1752022379354,0.03668874,109020.0,109010.0,0.4456361]
[1752022380306,0.03668874,109020.0,109010.0,0.52827691]
[1752022382704,0.03668874,109020.0,109010.0,0.54545592]
[1752022383142,0.04586128,109020.0,109010.0,0.54545592]
[1752022383657,0.34918749,109020.0,109010.0,0.54545592]
[1752022384817,0.34918749,109020.0,109010.0,0.52827691]
[1752022385023,0.04586128,109020.0,109010.0,0.52827691]
[1752022385425,0.04586128,109020.0,109010.0,0.4456361]
[1752022385649,0.34918749,109020.0,109010.0,0.4456361]
[1752022387038,0.34001495,109020.0,109010.0,0.4456361]
[1752022387241,0.34001495,109020.0,109010.0,0.52827691]
[1752022388326,0.33084249,109020.0,109010.0,0.52827691]